Cogmind - Beta 12 @@@ ROGUE MODE // 2023.03.09 @ 22:55:58 Player: dhtilly Result: Destroyed by D-53 Grenadier with Mini Grenade Launcher Performance ------------- Evolutions (0) 0 Regions Visited (4) 800 Robots Destroyed (23) 115 Value Destroyed (499) 499 Prototype IDs (23) 460 Alien Tech Used (0) 0 Bonus (302) 302 TOTAL SCORE: 2176 Bonus ------- High Alert Combat Kills 2 Aligned with FarCom 300 Cogmind --------- Core Integrity 0/250 Matter 300/300 Energy 100/100 System Corruption 0% Temperature Cool (0) Movement Treading (240) Ox1 Location -9/Mines Parts ------- > --- POWER (1) -------- (None) > --- PROPULSION (2) --- Light Treads > --- UTILITY (2) ------ Large Storage Unit Core Shielding > --- WEAPON (2) ------- Light Assault Rifle > --- INVENTORY (15) --- Light Ion Engine Light Ion Engine Improved Heat Sink Humpback 0b10 Alert Chip Targeting Computer Light Armor Plating Light Armor Plating Small Laser Assault Rifle Light Assault Rifle Battle Cannon Grenade Launcher Mining Claw Peak State ------------ > --- POWER ------------ Ion Engine > --- PROPULSION ------- Light Treads Light Treads > --- UTILITY ---------- Large Storage Unit Sensor Array > --- WEAPON ----------- Small Laser Light Assault Rifle > --- INVENTORY -------- Light Ion Engine Light Ion Engine Improved Heat Sink Large Storage Unit 0b10 Alert Chip Targeting Computer Core Shielding Light Armor Plating Light Armor Plating Small Laser Assault Rifle Light Assault Rifle Battle Cannon Grenade Launcher Mining Claw [Rating: 9] Favorites ----------- Power Ion Engine Engine Ion Engine Propulsion Light Treads Treads Light Treads Wheel Compact Wheel Utility Large Storage Unit Device Sensor Array Storage Large Storage Unit Protection Core Shielding Weapon Small Laser Energy Gun Small Laser Ballistic Gun Light Assault Rifle Slashing Weapon Mining Claw Build | -11 -10 -10 -10 -9 ------- Run | Jun Mat Min Exi Min Slots Evolved . | . . . . . Power . | . . . . . Propulsion . | . . . . . Utility . | . . . . . Weapon . | . . . . . Parts Attached 19 | 5 10 2 2 . Power 3 | 1 2 . . . Engine 3 | 1 2 . . . Core . | . . . . . Reactor . | . . . . . Propulsion 4 | 1 2 1 . . Treads 2 | . 1 1 . . Leg . | . . . . . Wheel 2 | 1 1 . . . Hover . | . . . . . Flight . | . . . . . Utility 5 | 1 2 . 2 . Device 1 | . 1 . . . Storage 3 | 1 1 . 1 . Processor . | . . . . . Hackware . | . . . . . Protection 1 | . . . 1 . Artifact . | . . . . . Weapon 7 | 2 4 1 . . Energy Gun 5 | 2 2 1 . . Energy Cannon . | . . . . . Ballistic Gun 1 | . 1 . . . Ballistic Cannon . | . . . . . Launcher . | . . . . . Special Weapon . | . . . . . Impact Weapon . | . . . . . Slashing Weapon 1 | . 1 . . . Piercing Weapon . | . . . . . Special Melee Weapon . | . . . . . Unidentified Prototypes . | . . . . . Parts Lost 10 | . 5 2 . 3 Power 3 | . 2 . . 1 Propulsion 3 | . 1 1 . 1 Utility . | . . . . . Weapon 4 | . 2 1 . 1 Highest Loss Streak 3 | . 2 1 . 3 To Critical Strikes . | . . . . . Average Slot Usage (%) 98 | . 94 100 99 98 Engine 13 | . 11 14 14 14 Treads 20 | . 5 27 28 26 Wheel 6 | . 19 . . . Device 12 | . 13 14 12 . Storage 14 | . 14 14 14 14 Protection 1 | . . . 1 14 Energy Gun 16 | . 24 14 14 14 Ballistic Gun 10 | . 3 14 14 14 Naked Turns . | . . . . . Heaviest Build 29 | 11 29 28 28 28 Greatest Support 40 | 16 32 40 40 40 Greatest Overweight (x) 1 | . 1 1 . 1 Average Overweight (x) . | . . . . . Largest Inventory Capacity 15 | 8 15 15 15 15 Average Capacity 14 | 7 14 15 15 15 Most Carried 15 | 5 9 14 15 15 Average Carried 10 | 3 7 9 14 15 Final Capacity 15 | 8 15 15 15 15 Final Carried 15 | 5 7 14 15 15 Class Distribution -------------------- 100% | Mutant Dominant Class ---------------- Mutant | -10/Materials Mutant | -10/Mines Mutant | -10/Exiles Mutant | -9/Mines Resources | -11 -10 -10 -10 -9 ----------- Run | Jun Mat Min Exi Min Matter Collected 400 | 208 139 33 . 20 Remotely . | . . . . . Salvage Created 742 | . 605 137 . . Parts 38 | . 31 7 . . Haulers Intercepted 2 | . 2 . . . Recyclers Shooed . | . . . . . Parts Field Recycled . | . . . . . Retrieved Matter . | . . . . . Parts Self-Destructed . | . . . . . Prevented . | . . . . . Kills | -11 -10 -10 -10 -9 ------- Run | Jun Mat Min Exi Min Combat Hostiles Destroyed 20 | . 15 5 . . Guns 20 | . 15 5 . . Classes Destroyed 4 | . 4 . . . Builder 1 | . 1 . . . Hauler 2 | . 2 . . . Swarmer 9 | . 6 3 . . Grunt 11 | . 9 2 . . Best Kill Streak 3 | . 3 3 . . Combat Bots Only 3 | . 3 3 . . Max Kills in Single Turn 1 | . 1 1 . . Gunslinging . | . . . . . Exploded . | . . . . . Melee . | . . . . . Uniques/NPCs Destroyed . | . . . . . Combat | -11 -10 -10 -10 -9 -------- Run | Jun Mat Min Exi Min Damage Taken 1113 | . 650 282 . 181 Core 264 | . 149 47 . 68 Absorbed by Shields . | . . . . . Redirected to Shielding 3 | . . . . 3 Core Remaining (%) 100 | 100 . . . . Volleys Fired 73 | . 59 14 . . Largest 2 | . 2 2 . . Hottest 80 | . 80 60 . . Shots Fired 146 | . 118 28 . . Gun 146 | . 118 28 . . Cannon . | . . . . . Launcher . | . . . . . Special . | . . . . . Kinetic 26 | . 12 14 . . Thermal 114 | . 100 14 . . Explosive . | . . . . . Electromagnetic 6 | . 6 . . . Robot Hit Streak 21 | . 21 10 . . Robot Miss Streak 4 | . 4 4 . . Penetration Max . | . . . . . Secondary Targets 2 | . 1 1 . . Max Gunslinging Chain 1 | . 1 1 . . Shots Hit Robots 98 | . 80 18 . . Core Hits 40 | . 32 8 . . Critical Kills . | . . . . . Critical Parts Destroyed . | . . . . . Critical Strikes . | . . . . . Melee Attacks 1 | . 1 . . . Impact . | . . . . . Slashing 1 | . 1 . . . Piercing . | . . . . . Sneak Attacks . | . . . . . Combat Hostiles . | . . . . . Follow-up Attacks . | . . . . . Damage Inflicted 1055 | . 875 180 . . Guns 1055 | . 875 180 . . Cannons . | . . . . . Explosions . | . . . . . Melee . | . . . . . Ramming . | . . . . . Kinetic 158 | . 93 65 . . Thermal 849 | . 734 115 . . Explosive . | . . . . . Electromagnetic 48 | . 48 . . . Impact . | . . . . . Slashing . | . . . . . Piercing . | . . . . . Highest Corruption . | . . . . . Average Corruption . | . . . . . Corruption Purged . | . . . . . Corruption Blocked . | . . . . . Overload Shots . | . . . . . Overflow Damage . | . . . . . Projectiles . | . . . . . Explosions . | . . . . . Melee . | . . . . . Knockbacks . | . . . . . Impact . | . . . . . Kinetic . | . . . . . Secondary . | . . . . . Self-Inflicted Damage . | . . . . . Shots . | . . . . . Rammed . | . . . . . Targets Rammed . | . . . . . Kicked . | . . . . . Crushed . | . . . . . Highest Temperature 211 | . 211 50 . . Average Temperature 55 | . 61 23 . . Received Heat Transfer 372 | . 270 102 . . Siege Activations . | . . . . . Robots Corrupted . | . . . . . Combat Hostiles . | . . . . . Parts Fried . | . . . . . Impact Corruptions . | . . . . . Robots Melted . | . . . . . Combat Hostiles . | . . . . . Parts Melted 3 | . 3 . . . Heat Transferred 1925 | . 1650 275 . . Parts Sabotaged . | . . . . . Parts Stolen . | . . . . . Parts Stripped . | . . . . . Power Chain Reactions . | . . . . . Missiles Intercepted . | . . . . . Alert | -11 -10 -10 -10 -9 ------- Run | Jun Mat Min Exi Min Peak Influence 406 | . 406 233 . 35 Initial 118 | . . 118 . . Average 140 | . 224 119 . 3 Maximum Alert Level 2 | . 2 1 . . Low Security (%) 56 | 100 30 62 . 100 Level 1 43 | . 67 37 . . Level 2 . | . 1 . . . Level 3 . | . . . . . Level 4 . | . . . . . Level 5 . | . . . . . High Security . | . . . . . Max Security . | . . . . . Squads Dispatched 4 | . 4 . . . Investigation 2 | . 2 . . . Extermination . | . . . . . Reinforcement 2 | . 2 . . . Assault . | . . . . . Garrison . | . . . . . Intercept . | . . . . . Searches Triggered . | . . . . . Construction Impeded . | . . . . . Haulers Reinforced . | . . . . . Active Scanning Responses . | . . . . . Cargo Convoy Interrupts . | . . . . . Stealth | -11 -10 -10 -10 -9 --------- Run | Jun Mat Min Exi Min Distress Signals 3 | . 3 . . . Communications Jammed . | . . . . . Distress Signals . | . . . . . Times Spotted 41 | . 28 6 . 7 Peak Tracking Total 5 | . 5 3 . 5 Tactical Retreats 7 | . 5 1 . 1 Traps | -11 -10 -10 -10 -9 ------- Run | Jun Mat Min Exi Min Traps Triggered 1 | . 1 . . . Indirectly . | . . . . . Trap Hack Attempts . | . . . . . Triggered . | . . . . . Disarmed . | . . . . . Reprogrammed . | . . . . . Reused . | . . . . . Traps Extracted . | . . . . . Installed . | . . . . . Triggered . | . . . . . Machines | -11 -10 -10 -10 -9 ---------- Run | Jun Mat Min Exi Min Machines Disabled . | . . . . . Max in Single Turn . | . . . . . Machines Repaired . | . . . . . Machines Sabotaged . | . . . . . Overloaded Fab Kills . | . . . . . Hacking | -11 -10 -10 -10 -9 --------- Run | Jun Mat Min Exi Min Machines Accessed 9 | . 4 . 5 . Terminals 4 | . 4 . . . Fabricators . | . . . . . Repair Stations . | . . . . . Recycling Units . | . . . . . Scanalyzers . | . . . . . Garrison Access . | . . . . . Total Hacks 64 | . 14 . 50 . Successful 54 | . 4 . 50 . Failed 10 | . 10 . . . Catastrophic 4 | . 4 . . . Database Lockouts . | . . . . . Manual 13 | . 12 . 1 . Terminals 14 | . 14 . . . Fabricators . | . . . . . Repair Stations . | . . . . . Recycling Units . | . . . . . Scanalyzers . | . . . . . Garrison Access . | . . . . . Terminal Hacks 54 | . 4 . 50 . Record 49 | . . . 49 . Branch Access Points 1 | . 1 . . . Locate Traps 1 | . 1 . . . Recall Reinforcements 1 | . 1 . . . Zone Layout 1 | . 1 . . . EX-Prototype ID Bank 1 | . . . 1 . Fabricator Hacks . | . . . . . Repair Station Hacks . | . . . . . Recycling Unit Hacks . | . . . . . Scanalyzer . | . . . . . Garrison Access Hacks . | . . . . . Unauthorized Hacks . | . . . . . Terminals . | . . . . . Fabricators . | . . . . . Repair Stations . | . . . . . Recycling Units . | . . . . . Scanalyzers . | . . . . . Garrison Access . | . . . . . Data Cores Recovered . | . . . . . Used . | . . . . . Hacking Detections 4 | . 4 . . . Full Trace Events 1 | . 1 . . . Feedback Events . | . . . . . Feedback Blocked . | . . . . . Robot Schematics Acquired . | . . . . . Robots Built . | . . . . . Authchips . | . . . . . Time . | . . . . . Total Robot Build Rating . | . . . . . Part Schematics Acquired . | . . . . . Parts Built . | . . . . . Authchips . | . . . . . Time . | . . . . . Total Part Build Rating . | . . . . . Parts Repaired . | . . . . . Time . | . . . . . Parts Recycled . | . . . . . Recycled Matter . | . . . . . Retrieved Matter . | . . . . . Retrieved Components . | . . . . . Parts Scanalyzed . | . . . . . Part Schematics Acquired . | . . . . . Parts Damaged . | . . . . . Bothacking | -11 -10 -10 -10 -9 ------------ Run | Jun Mat Min Exi Min Used RIF Installer . | . . . . . Robots Hacked . | . . . . . Non-combat . | . . . . . Combat . | . . . . . Robot Hacks Applied . | . . . . . Relay Couplers Released . | . . . . . Fabnet Peak Effective % . | . . . . . Robots Rewired . | . . . . . Allies Hacked . | . . . . . Hacks Repelled . | . . . . . Allies | -11 -10 -10 -10 -9 -------- Run | Jun Mat Min Exi Min Total Allies . | . . . . . Largest Group . | . . . . . Highest-Rated Group . | . . . . . Highest-Rated Ally . | . . . . . Total Orders . | . . . . . Ally Attacks . | . . . . . Total Damage . | . . . . . Kills . | . . . . . Allies Corrupted . | . . . . . Allies Melted . | . . . . . Intel | -11 -10 -10 -10 -9 ------- Run | Jun Mat Min Exi Min Robot Analysis Total . | . . . . . Derelict Logs Recovered 2 | . . 1 . 1 Drone Launches . | . . . . . Drone Recoveries . | . . . . . Exploration | -11 -10 -10 -10 -9 ------------- Run | Jun Mat Min Exi Min Turns Passed 2226 | 55 634 790 546 201 Spaces Moved 1298 | 43 334 465 335 121 Core 3 | 3 . . . . Treads 905 | . 17 432 335 121 Legs . | . . . . . Wheels 390 | 40 317 33 . . Hover . | . . . . . Flight . | . . . . . Fastest Speed 50 | 50 100 115 160 160 Average Speed 145 | 96 112 156 160 166 Slowest Speed 240 | 100 240 160 160 240 Overloaded Moves . | . . . . . Propulsion Burnouts . | . . . . . Robots Hopped . | . . . . . Cave-ins Triggered . | . . . . . Exploration Rate (%) 49 | 3 58 82 63 39 Regions Visited 4 Branch Regions 3 Pre-discovered Areas 1 | . . . 1 . Known Exits Taken 1 | . 1 . . . Unknown Exits Taken 3 | 1 . 1 1 . Scrap Searched 2 | . . 1 . 1 Spaces Dug 1 | . 1 . . . Terrain Destroyed 1 | . 1 . . . Melee 1 | . 1 . . . Projectile . | . . . . . AOE . | . . . . . Terrain Rammed . | . . . . . Walls Destroyed . | . . . . . Machines Disabled . | . . . . . Actions | -11 -10 -10 -10 -9 --------- Run | Jun Mat Min Exi Min Total 1496 | 54 472 501 348 121 Wait 72 | . 60 12 . . Move 1294 | 42 333 464 334 121 Hop . | . . . . . Pick Up 27 | 6 8 9 4 . Fast Attach 9 | 5 2 . 2 . Attach 7 | . 5 2 . . Detach 1 | . . . 1 . Swap 3 | . 3 . . . Drop 8 | 1 1 . 6 . Fire 73 | . 59 14 . . Melee 1 | . 1 . . . Ram . | . . . . . Kick . | . . . . . Crush . | . . . . . Escape Stasis . | . . . . . Rewire 1 | . . . 1 . Trap . | . . . . . Miscellaneous . | . . . . . Route ------- -11/Junkyard -10/Materials (discovered 3 exits: [*Mat] / *Min x2) -10/Mines (discovered 3 exits: [*Mat x2] / *Exi) -10/Exiles (discovered 2 exits: [*Min x2]) -9/Mines (discovered 1 exit: [*Mat]) History --------- Turn | Location | Event 18 | -11/Junkyard | Discovered new exit (range 15) 56 | -11/Junkyard | Entered Materials 271 | -10/Materials | Discovered new exit (range 15) 284 | -10/Materials | Identified exit to Mines 315 | -10/Materials | Build established: Mutant 350 | -10/Materials | Core integrity fell below 50% 630 | -10/Materials | Discovered new exit (range 10) 690 | -10/Materials | Entered Mines 856 | -10/Mines | YI-UF0 nonchalantly dropped a Grenade Launcher on the ground 879 | -10/Mines | Discovered new exit (range 11) 1267 | -10/Mines | A weapon hastily lodged in a ceiling crevice suddenly fell to the ground 1393 | -10/Mines | Discovered new exit (range 7) 1406 | -10/Mines | Joined a pair of Derelicts in attacking an 0b10 outpost 1474 | -10/Mines | Deemed a non-threat by the Exiles lab entrance 1474 | -10/Mines | Discovered new exit (range 5) 1480 | -10/Mines | Entered Exiles 1508 | -10/Exiles | Discovered new exit (range 14) 1533 | -10/Exiles | Met 8R-AWN 1559 | -10/Exiles | Met EX-HEX 1633 | -10/Exiles | Met EX-BIN 1728 | -10/Exiles | Aligned with FarCom system 1729 | -10/Exiles | Given EX-Vault access code 1766 | -10/Exiles | Opened EX-Vault 1787 | -10/Exiles | Found 0b10 Alert Chip 1842 | -10/Exiles | Warned to stay clear of 0b10 Research branches 1886 | -10/Exiles | Met EX-DEC 1894 | -10/Exiles | Learned location of Zion (-6) 2010 | -10/Exiles | Discovered new exit (range 12) 2026 | -10/Exiles | Left Exiles lab with 0b10 Alert Chip 2026 | -10/Exiles | Entered Mines 2026 | -9/Mines | Learned Materials trap positions 2065 | -9/Mines | Discovered new exit (range 8) 2163 | -9/Mines | Assembled infested the area 2168 | -9/Mines | Assisted by a Guerilla fighting off Assembled 2208 | -9/Mines | Core integrity fell below 20% 2227 | -9/Mines | Destroyed by D-53 Grenadier with Mini Grenade Launcher Last Messages --------------- 02162_ Found Heat Sink. 02162_ Found 12 Matter. 02163_ ALERT: Infestation in the mines, dispatching Demolisher response squad. 02163_ Acquired 12 matter. 02168_ A derelict emerges from the shadows: "You need to get out of here! I've been tracking a group of Assembled to figure out where they're coming from, and they're closing on this area, come on!" 02170_ Acquired 8 matter. 02173_ 9S-RY1(h): "I'll hold them off! Go on ahead or try to find another way!" 02173_ HV Slug penetrates Wall. 02175_ HV Slug penetrates D-53 Grenadier. 02182_ 9S-RY1(h) destroyed. 02203_ Lgt. Treads destroyed. 02207_ as-16555 destroyed. 02207_ as-78391 destroyed. 02216_ as-02615 destroyed. 02226_ Ion Engine destroyed. 02226_ T-07 Excavator destroyed. 02227_ The unstable cave ceiling collapses. 02227_ Sml. Laser destroyed. Map ----- +----------------------------------------------------+ | | | | | | | | | | | | | | | | | | | | | | | ?????????????????????????????????????? | | ?????????????????????????????????????? | | ?????????????????????????????????????? | | ?????????????????#???????????????????? | | ???????????????? #???????????????????? | | ???????????????" #???????????????????? | | ???????????? """ #???????????????????? | | ???????????? """ #???????????????????? | | ???????????? #???????????????????? | | ????????????? #???????????????????? | | ????????????? #???????????????????? | | ??????????##?# ####????????????????? | | ?????###??# ## # ###??????????????? | | ????## ### ###????????????? | | ????# @ #????##??????? | | ????# * # ##?????? | | ????## ?????? | | ?????## %d ????? | | ??????# d ????? | | ??????# #???????? | | ??????## #### t ??????????? | | ???????## ##??? ??????????? | | ????????####????## #???????????? | | ?????????????????# #???????????? | | ?????????????????# #???????????? | | ?????????????????## ????????????? | | ??????????????????## #?????????????? | | ????????????????????# ###????????????? | | ????????????????????# #????????????? | | ????????????????????## #????????????? | | ?????????????????????# #????????????? | | ?????????????????????# #????????????? | | ?????????????????????# #????????????? | | ?????????????????????# #????????????? | | ????????##???????????# #????????????? | | ??????## ##??????????# #????????????? | | ?????## #??????????#%!#????????????? | | ??#### #??????????#! #????????????? | | ?## #??????????? #???????????? | +----------------------------------------------------+ Best States ------------- Heat Dissipation 25 Energy Generation 10 Energy Capacity 250 Matter Stores 300 Matter Capacity 300 Sight Range 16 Robot Scan Range 14 Terrain Scan Density 10 Core Shielding 20 Evasion (%) 40 Recoil Reduction 2 Item Schematics ----------------- None Robot Schematics ------------------ None Fabricated ------------ Nothing Alien Tech Used ----------------- None Achievements -------------- None Challenges ------------ None Game ------ Seed AssemblyFusionPurifier Manual? 0 Play Time 00:22:24 Cumulative 75.1 hours Start 2023.03.09 @ 22:22:47 End 2023.03.09 @ 22:55:58 Sessions 1 Manual Loads 0 Difficulty Rogue Special Mode None Game No. 44 Rogue 44 Adventurer 0 Explorer 0 Win Type - Total 0 Types 0/0/0/0/0/0/0/0/0 Lore% 37 Gallery% 47 Achievement% 39 Wizard Run 0 Options --------- ASCII 0 Keyboard 1 Movement Vi Keybinds 0 Fullscreen 2 Font 12/Terminus Map View 83x54 Tactical HUD 1 Map Filters NONE Filters NONE Steam 1 RUN: c86dcc95-ff7b-4610-86c8-4706cd3663ca